Cogmind - Beta 16.1 @@@ ROGUE MODE // 2026.04.04 @ 22:38:30 Player: Thqwib-Linux Result: Destroyed by SP-ZGA(R) with Subdweller Beam Cannon Performance ------------- Evolutions (0) 0 Regions Visited (2) 400 Robots Destroyed (37) 185 Value Destroyed (1092) 1092 Prototype IDs (0) 0 Alien Tech Used (0) 0 Bonus (0) 0 TOTAL SCORE: 1677 Bonus ------- None Cogmind --------- Core Integrity 0/250 Matter 280/300 Energy 144/160 System Corruption 0% Temperature Warning (300) Movement Treading (160) Location -10/Subcaves Parts ------- > --- POWER (1) -------- Light Nuclear Core > --- PROPULSION (2) --- Spiked Treads Spiked Treads > --- UTILITY (2) ------ Medium Storage Unit Makeshift Light Armor Plating > --- WEAPON (2) ------- Beam Rifle Battle Cannon > --- INVENTORY (10) --- Subdweller Power Source Structural Scanner Propulsion Shielding Beam Rifle Battle Rifle Battle Rifle Battle Rifle Subdweller Machine Gun Mini Grenade Launcher Makeshift Hammer Peak State ------------ > --- POWER ------------ Light Nuclear Core > --- PROPULSION ------- Spiked Treads Spiked Treads > --- UTILITY ---------- Medium Storage Unit Makeshift Light Armor Plating > --- WEAPON ----------- Beam Rifle Makeshift Hammer > --- INVENTORY -------- Subdweller Power Source Structural Scanner Propulsion Shielding Beam Rifle Battle Rifle Battle Rifle Battle Rifle Subdweller Machine Gun Battle Cannon Mini Grenade Launcher [Rating: 19] Favorites ----------- Power Ion Engine Engine Ion Engine Power Core Light Nuclear Core Propulsion Light Treads Treads Light Treads Leg Aluminum Leg Utility Medium Storage Unit Device Seismic Detector Storage Medium Storage Unit Processor Targeting Computer Protection Makeshift Light Armor Plating Weapon Beam Rifle Energy Gun Beam Rifle Energy Cannon Beam Cannon Ballistic Gun Assault Rifle Ballistic Cannon Battle Cannon Impact Weapon Makeshift Hammer Build | -11 -10 -10 ------- Run | Yrd Mat Sub Slots Evolved . | . . . Power . | . . . Propulsion . | . . . Utility . | . . . Weapon . | . . . Parts Attached 22 | 3 7 12 Power 2 | . 1 1 Engine 1 | . 1 . Core 1 | . . 1 Reactor . | . . . Propulsion 8 | 2 1 5 Treads 8 | 2 1 5 Leg . | . . . Wheel . | . . . Hover . | . . . Flight . | . . . Utility 4 | 1 2 1 Device 1 | 1 . . Storage 1 | . 1 . Processor 1 | . 1 . Hackware . | . . . Protection 1 | . . 1 Artifact . | . . . Weapon 8 | . 3 5 Energy Gun 2 | . 1 1 Energy Cannon 2 | . 1 1 Ballistic Gun 1 | . 1 . Ballistic Cannon 2 | . . 2 Launcher . | . . . Special Weapon . | . . . Impact Weapon 1 | . . 1 Slashing Weapon . | . . . Piercing Weapon . | . . . Special Melee Weapon . | . . . Unidentified Prototypes . | . . . Parts Lost 5 | . 2 3 Power 2 | . 1 1 Propulsion 2 | . 1 1 Utility . | . . . Weapon 1 | . . 1 Highest Loss Streak 1 | . 1 1 To Critical Strikes . | . . . Average Backups 8 | 2 6 9 Power 1 | 1 1 . Propulsion . | . . . Utility 2 | . 1 2 Weapon 5 | 1 3 5 Tool/Special . | . . . Unused Backups 22 | 4 6 12 Power 2 | . 1 1 Propulsion 5 | 4 1 . Utility 5 | . 2 3 Weapon 10 | . 2 8 Tool/Special . | . . . Average Slot Usage (%) 99 | . 99 99 Engine 11 | . 13 10 Core 2 | . . 3 Treads 27 | . 27 28 Device 1 | . 8 . Storage 14 | . 14 14 Processor 9 | . 5 10 Protection 2 | . . 3 Energy Gun 9 | . 9 9 Energy Cannon 4 | . 4 4 Ballistic Gun 4 | . 14 2 Ballistic Cannon 5 | . . 7 Impact Weapon 3 | . . 4 Peak Build Rating 19 | 7 9 19 Average Rating 11 | 6 8 12 On Entrance 7 | 6 7 8 Avg Prop Armor Cover (%) . | . . . Naked Turns . | . . . Heaviest Build 25 | 15 20 25 Greatest Support 40 | 40 40 40 Greatest Overweight (x) . | . . . Average Overweight (x) . | . . . Largest Inventory Capacity 10 | 8 10 10 Average Capacity 9 | 8 8 10 Most Carried 10 | 8 10 10 Average Carried 8 | 2 6 9 Final Capacity 10 | 8 10 10 Final Carried 10 | 2 10 10 Class Distribution -------------------- 81% | Mutant 18% | Derelict-Mutant Dominant Class ---------------- Mutant | -10/Materials Mutant | -10/Subcaves Resources | -11 -10 -10 ----------- Run | Yrd Mat Sub Matter Collected 1149 | 260 222 667 Remotely . | . . . Salvage Created 1188 | 65 598 525 Parts 75 | 12 30 33 Haulers Intercepted 2 | . 2 . Recyclers Shooed 2 | 1 1 . Parts Field Recycled . | . . . Retrieved Matter . | . . . Parts Self-Destructed 4 | . . 4 Prevented . | . . . Parts Restored . | . . . Kills | -11 -10 -10 ------- Run | Yrd Mat Sub Combat Hostiles Destroyed 29 | . 14 15 Guns 18 | . 12 6 Cannons 10 | . 2 8 Classes Destroyed 7 | 2 4 1 Worker 1 | 1 . . Tunneler 4 | 4 . . Hauler 2 | . 2 . Watcher 1 | . 1 . Swarmer 3 | . 3 . Grunt 11 | . 11 . Subdweller 15 | . . 15 Best Kill Streak 5 | 4 5 2 Combat Bots Only 5 | . 5 2 Max Kills in Single Turn 2 | 1 2 1 Gunslinging . | . . . Exploded . | . . . Melee . | . . . Uniques/NPCs Destroyed . | . . . Combat | -11 -10 -10 -------- Run | Yrd Mat Sub Hostile Shots Fired 148 | . 66 82 Missed 38 | . 19 19 Hits 110 | . 47 63 Projectile 110 | . 47 63 AOE 3 | . . 3 Critical Strikes 2 | . 1 1 Damage Taken 2048 | . 549 1499 Core 259 | . 78 181 Absorbed by Shields . | . . . Core Remaining (%) 100 | 100 . . Volleys Fired 163 | 10 53 100 Largest 2 | 2 2 2 Hottest 100 | 70 80 100 Shots Fired 286 | 20 106 160 Gun 167 | 20 91 56 Cannon 119 | . 15 104 Launcher . | . . . Special . | . . . Kinetic 166 | 10 56 100 Thermal 120 | 10 50 60 Explosive . | . . . Electromagnetic . | . . . Robot Hit Streak 34 | 6 10 34 Robot Miss Streak 4 | 2 4 1 Penetration Max . | . . . Secondary Targets 1 | . 1 . Max Gunslinging Chain 1 | . 1 . Shots Hit Robots 182 | 12 69 101 Core Hits 62 | 4 32 26 Critical Kills 1 | . . 1 Critical Parts Destroyed . | . . . Critical Strikes 10 | 3 2 5 Burn 8 | 3 2 3 Meltdown 1 | . . 1 Blast 1 | . . 1 Melee Attacks 71 | . . 71 Impact 71 | . . 71 Slashing . | . . . Piercing . | . . . Sneak Attacks . | . . . Combat Hostiles . | . . . Follow-up Attacks . | . . . Damage Inflicted 2952 | 158 1014 1780 Guns 1548 | 155 822 571 Cannons 1385 | . 176 1209 Explosions . | . . . Melee . | . . . Ramming 19 | 3 16 . Kinetic 1526 | 79 482 965 Thermal 1407 | 76 516 815 Explosive . | . . . Electromagnetic . | . . . Impact . | . . . Slashing . | . . . Piercing . | . . . Highest Corruption . | . . . Average Corruption . | . . . Corruption Purged . | . . . Corruption Blocked . | . . . Overload Shots . | . . . Overflow Damage 16 | . . 16 Projectiles 16 | . . 16 Explosions . | . . . Melee . | . . . Knockbacks 4 | 1 . 3 Impact 1 | 1 . . Kinetic 3 | . . 3 Secondary . | . . . Self-Inflicted Damage . | . . . Shots . | . . . Rammed 6 | . 6 . Targets Rammed 7 | 1 6 . Kicked . | . . . Crushed 1 | 1 . . Highest Temperature 295 | 27 216 295 Average Temperature 61 | 11 69 66 Received Heat Transfer 809 | . 306 503 Siege Activations . | . . . Martial Activations . | . . . Shielding Activations . | . . . Robots Disrupted . | . . . Combat Hostiles . | . . . Robots Corrupted . | . . . Combat Hostiles . | . . . Parts Fried . | . . . Impact Corruptions . | . . . Robots Melted 1 | . . 1 Combat Hostiles 1 | . . 1 Parts Melted 5 | 2 1 2 Heat Transferred 3885 | 444 1406 2035 Parts Sabotaged . | . . . Parts Stolen . | . . . Parts Stripped . | . . . Power Chain Reactions . | . . . Alert | -11 -10 -10 ------- Run | Yrd Mat Sub Maximum Alert Level 1 | . 1 . Low Security (%) 72 | 100 69 . Level 1 27 | . 30 . Level 2 . | . . . Level 3 . | . . . Level 4 . | . . . Level 5 . | . . . High Security . | . . . Max Security . | . . . Peak Influence 278 | 10 278 . Initial 3 | . 3 . Average 97 | 2 105 . Influence Increases 468 | 25 443 . Destroy 0b10 Robot/C 280 | . 280 . Destroy 0b10 Robot/NC 40 | 25 15 . Destroy Leader 76 | . 76 . Successful Hack 11 | . 11 . Destroy Structure 1 | . 1 . Lose Combat Pursuer 60 | . 60 . Influence Decreases 468 | 20 242 206 Entered New Map 102 | . 2 100 Time Decay 346 | 20 220 106 Lost Part 20 | . 20 . Squads Dispatched 4 | . 4 . Investigation 2 | . 2 . Extermination . | . . . Reinforcement 2 | . 2 . Assault . | . . . Garrison . | . . . Intercept . | . . . Searches Triggered . | . . . Construction Impeded . | . . . Haulers Reinforced . | . . . Active Scanning Responses . | . . . Cargo Convoy Interrupts . | . . . Stealth | -11 -10 -10 --------- Run | Yrd Mat Sub Distress Signals 2 | . 2 . Communications Jammed . | . . . Distress Signals . | . . . Times Spotted 51 | . 33 18 Peak Tracking Total 6 | . 6 2 Tactical Retreats 4 | . 3 1 Traps | -11 -10 -10 ------- Run | Yrd Mat Sub Traps Triggered 2 | . 2 . Indirectly . | . . . Trap Hack Attempts . | . . . Triggered . | . . . Disarmed . | . . . Reprogrammed . | . . . Reused . | . . . Traps Extracted . | . . . Installed . | . . . Triggered . | . . . Machines | -11 -10 -10 ---------- Run | Yrd Mat Sub Machines Disabled . | . . . Max in Single Turn . | . . . Machines Repaired . | . . . Machines Dismantled . | . . . Machines Sabotaged . | . . . Overloaded Fab Kills . | . . . Hacking | -11 -10 -10 --------- Run | Yrd Mat Sub Machines Accessed 5 | . 3 2 Terminals 2 | . 2 . Fabricators . | . . . Repair Stations 1 | . 1 . Recycling Units . | . . . Scanalyzers . | . . . Garrison Access . | . . . Total Hacks 11 | . 7 4 Successful 6 | . 2 4 Failed 5 | . 5 . Catastrophic 1 | . 1 . Database Lockouts . | . . . Manual 5 | . 5 . Terminals 6 | . 6 . Fabricators . | . . . Repair Stations 1 | . 1 . Recycling Units . | . . . Scanalyzers . | . . . Garrison Access . | . . . Terminal Hacks 5 | . 1 4 Record 3 | . . 3 Robot Analysis 1 | . 1 . Open Door 1 | . . 1 Fabricator Hacks . | . . . Repair Station Hacks . | . . . Recycling Unit Hacks . | . . . Scanalyzer . | . . . Garrison Access Hacks . | . . . Unauthorized Hacks 1 | . 1 . Terminals 1 | . 1 . Botnet 1 | . 1 . Fabricators . | . . . Repair Stations . | . . . Recycling Units . | . . . Scanalyzers . | . . . Garrison Access . | . . . Data Cores Recovered . | . . . Used . | . . . Hacking Detections 3 | . 3 . Full Trace Events . | . . . Feedback Events . | . . . Feedback Blocked . | . . . Robot Schematics Acquired . | . . . Robots Built . | . . . Authchips . | . . . Time . | . . . Total Robot Build Rating . | . . . Part Schematics Acquired . | . . . Parts Built . | . . . Authchips . | . . . Time . | . . . Total Part Build Rating . | . . . Part Studies Acquired . | . . . Parts Repaired . | . . . Time . | . . . Parts Recycled . | . . . Recycled Matter . | . . . Retrieved Matter . | . . . Retrieved Components . | . . . Parts Scanalyzed . | . . . Part Schematics Acquired . | . . . Parts Damaged . | . . . Bothacking | -11 -10 -10 ------------ Run | Yrd Mat Sub Used RIF Installer . | . . . Robots Hacked . | . . . Non-combat . | . . . Combat . | . . . Robot Hacks Applied . | . . . Relay Couplers Released . | . . . Fabnet Peak Effective % . | . . . Robots Rewired . | . . . Allies Hacked . | . . . Hacks Repelled . | . . . Allies | -11 -10 -10 -------- Run | Yrd Mat Sub Total Allies . | . . . Largest Group . | . . . Highest-Rated Group . | . . . Highest-Rated Ally . | . . . Total Orders . | . . . Ally Attacks . | . . . Total Damage . | . . . Kills . | . . . Allies Corrupted . | . . . Allies Melted . | . . . Intel | -11 -10 -10 ------- Run | Yrd Mat Sub Active Infowar (turns) 687 | 10 677 . Seismic 687 | 10 677 . Robot Analysis Total 1 | . 1 . Derelict Logs Recovered 1 | . . 1 Drone Launches . | . . . Drone Recoveries . | . . . Exploration | -11 -10 -10 ------------- Run | Yrd Mat Sub Turns Passed 5862 | 101 1088 4673 Spaces Moved 3185 | 40 529 2616 Core . | . . . Treads 3185 | 40 529 2616 Legs . | . . . Wheels . | . . . Hover . | . . . Flight . | . . . Fastest Speed 160 | 160 160 160 Average Speed 160 | 160 160 160 Slowest Speed 160 | 160 160 160 Overloaded Moves . | . . . Propulsion Burnouts . | . . . Robots Hopped . | . . . Potential Cave-ins . | . . . Cave-ins Triggered . | . . . Exploration Rate (%) 60 | 4 83 95 Regions Visited 2 Branch Regions 1 Pre-discovered Areas 1 | . . 1 Known Exits Taken . | . . . Unknown Exits Taken 2 | 1 1 . Scrap Searched 19 | . . 19 Spaces Dug 26 | . . 26 Terrain Destroyed 31 | . . 31 Melee 15 | . . 15 Projectile 16 | . . 16 AOE . | . . . Terrain Rammed . | . . . Walls Destroyed . | . . . Machines Disabled . | . . . Actions | -11 -10 -10 --------- Run | Yrd Mat Sub Total 3594 | 59 663 2872 Wait 82 | . 47 35 Move 3184 | 40 528 2616 Hop . | . . . Pick Up 27 | . 14 13 Fast Attach 3 | 1 2 . Attach 8 | 2 2 4 Detach 4 | 2 1 1 Swap 23 | . 3 20 Drop 23 | 4 7 12 Fire 163 | 10 53 100 Melee 71 | . . 71 Ram . | . . . Kick . | . . . Crush 6 | . 6 . Escape Stasis . | . . . Rewire . | . . . Trap . | . . . Miscellaneous . | . . . Route ------- -11/Scrapyard -10/Materials (discovered 4 exits: [*Mat x2] / [*Min] / *Sub) -10/Subcaves (discovered 2 exits: [*Mat x2]) History --------- Turn | Location | Event 7 | -11/Scrapyard | Discovered new exit (range 3) 102 | -11/Scrapyard | Entered Materials 230 | -10/Materials | Discovered new exit (range 16) 303 | -10/Materials | Build established: Mutant 385 | -10/Materials | Discovered new exit (range 6) 971 | -10/Materials | Discovered new exit (range 6) 1179 | -10/Materials | Discovered new exit (range 8) 1190 | -10/Materials | Entered Subcaves 1191 | -10/Subcaves | Approached by a straggling Scientist 2208 | -10/Subcaves | Discovered new exit (range 5) 2209 | -10/Subcaves | Shifting Twisted Machinery released Sub. Machine Gun 2211 | -10/Subcaves | Shifting Twisted Machinery released Battle Rifle 2241 | -10/Subcaves | Disturbed a concealed Subdweller 2659 | -10/Subcaves | A swath of the cavern ceiling suddenly collapsed 2727 | -10/Subcaves | Core integrity fell below 50% 3386 | -10/Subcaves | Discovered new exit (range 9) 4170 | -10/Subcaves | Shifting Twisted Machinery released Sub. Optics 4212 | -10/Subcaves | Shifting Twisted Machinery released Mak. Flight Unit 4332 | -10/Subcaves | Shifting Twisted Machinery released Spk. Treads 4379 | -10/Subcaves | A swath of the cavern ceiling suddenly collapsed 4393 | -10/Subcaves | Learned Materials garrison access intel 4419 | -10/Subcaves | Learned location of Zion (-7) 4419 | -10/Subcaves | Met a Zionite searching for "candidates" 4521 | -10/Subcaves | Visited Clippyterm 4525 | -10/Subcaves | Learned Research security intel 4525 | -10/Subcaves | Learned Factory garrison access intel 4713 | -10/Subcaves | Ambushed by Subdweller buried in earth 4751 | -10/Subcaves | Core integrity fell below 20% 4866 | -10/Subcaves | Shifting Twisted Machinery released Battle Cannon 5055 | -10/Subcaves | Build established: Derelict-Mutant 5181 | -10/Subcaves | Disturbed a concealed Subdweller 5863 | -10/Subcaves | Destroyed by SP-ZGA(R) with Subdweller Beam Cannon Last Messages --------------- 05208_ 9O-P5L(R) destroyed. 05211_ Acquired 22 matter. 05218_ Searching scrap... 05218_ Found Mak. Light Armor Plating. 05218_ Found 61 Matter. 05219_ Acquired 61 matter. 05223_ Searching scrap... 05223_ Found Spk. Treads. 05223_ Found 48 Matter. 05224_ Acquired 12 matter. 05226_ Dropped Spk. Treads. 05228_ Searching scrap... 05228_ Found Scrap Shield. 05228_ Found 63 Matter. 05229_ Acquired 10 matter. 05458_ Searching scrap... 05458_ Found Battle Rifle. 05458_ Found 43 Matter. 05854_ SP-ZGA(R): "ARGHSUB!" 05861_ Critical hit (Meltdown: +290). Map ----- +----------------------------------------------------+ | # ##???# #?## ##??########## # | | # #???# #??####????????????### #### | | ## #???## ##????????????????????#####??### # | | ## ##???## ##??????#######???????????????### | | ### ##????# ###????# # #?????????????????? | | ####?????## #????# ] * #?????????????????? | | ######???#### #????###&"####???????????????? | | ##?????## ##????# |## #???????????????? | | #?????# #???###/# #???????????????? | | " ""= #?????# ###### " " ##??????????????? | | ! """ #?????##& # #??????????????? | | ## ###" #????## ###?????????#????? | | # ""## ##????# ##???????????# ??? | | ##" "######????## ## ### #?????????????#%%?? | | ?# ""#??####?## ## ### ##????????????#&&&# | | #"#"[##?## "### ## ##???????"???##%*[ | | ###" #?#""" ## # # ### ""??#[%%* | | ??## ###" #### =!!! | | ???# # "" ##??## # ## *&#? | | ??# # "" "" #???## ##### ### ???? | | ??#### """ ### ### ## #????? #?# ?????? | | ????# ##""###?## #?## #### #?????? ???????? | | ????#######????###??? # #?## ##?????? ???????? | | ?????????????????????## ## # ##??????? ???????? | | ????????????????????????## # ## #???????? ???????? | | ???????????????????????##@# ## #???????????????? | | ??????????????????????## #R#######???????????????? | | ?????????????????###?##] #?????????????????????? | | ?????????????????#%### ## #?????????????????????? | | ?????????????????##[ ## ##?????????????????????? | | ?????????????????# ## # #??????????????????????? | | ?????????????????# ## ####??????????????????????? | | ?????????????????### # ##????????????????????????? | | ???????????????????## #????????????????????????? | | ???????????????????# # ##????????????????????????? | | ???????????????????# #????????????????????????? | | ????????????????###"# #????????????????????????? | | ????????????????# ##???????????????????????? | | ????????????????#" &" #???????????????????????? | | ????????????????# #???????????????????????? | | ###????????????#" " #####???????????????????## | | #?????????#### # " ## ###???????###?????### | | ##???????## #???????# #????## | | #??????## # # #??????## ##???# | | ##????## ## # #### ##?????## ##### | | ##???# ## ## ####### ##??????# | | #???######## # # #???????# | | #??????????# ####?####### ## | | #??????????# #?# ##?######## | | ##?????????## # # ## #?# ##???######## | +----------------------------------------------------+ Best States ------------- Heat Dissipation 25 Energy Generation 14 Energy Capacity 250 Matter Stores 300 Matter Capacity 300 Sight Range 16 Terrain Scan Density 10 Armor Coverage 100 Evasion (%) 40 Targeting Accuracy 5 Recoil Reduction 2 Item Schematics ----------------- None Robot Schematics ------------------ None Fabricated ------------ Nothing Repaired ---------- Nothing Studied --------- None Alien Tech Used ----------------- None Achievements -------------- None Challenges ------------ None Game ------ Seed CoreChargeAutopenetrator Manual? 0 Play Time 00:35:13 Cumulative 97.4 hours Start 2026.04.04 @ 22:03:49 End 2026.04.04 @ 22:38:30 Sessions 1 Manual Loads 0 Difficulty Rogue Special Mode None Game No. 88 Rogue 88 Adventurer 0 Explorer 0 Win Type - Total 5 Types 3/0/1/1/0/0/0/0/0/0 Lore% 54 Gallery% 46 Achievement% 41 Wizard Run 0 Options --------- Layout 2 ASCII 0 Keyboard 1 Movement Arrows Keybinds 0 Fullscreen 2 Font 24/Terminus Map View 50x44 Zoom Use 0% Tactical HUD 1 Map Filters NONE Filters NONE Steam 1 RUN: 0cc0493c-b9d7-487d-a373-e5a5f12c303e